[Event "Reykjavik Chess Congress 2018"]
[Site "Reykjavik"]
[Date "2018.01.14"]
[Round "2"]
[White "Halldorsson, Bragi"]
[Black "Jensson, Einar Hjalti"]
[Result "1/2-1/2"]
[ECO "E10"]
[WhiteElo "2082"]
[BlackElo "2336"]
[Annotator "ChessBase"]
[PlyCount "185"]
[EventDate "2018.??.??"]
[EventType "swiss"]
[EventCountry "ISL"]
[SourceTitle "playchess.com"]
[Source "ChessBase"]
[SourceQuality "1"]
[TimeControl "40/5400+30:900+30"]

1. d4 {[%emt 0:00:19]} Nf6 {[%emt 0:00:05]} 2. c4 {[%emt 0:00:09]} e6 {[%emt 0:00:05]} 3. Nf3 {[%emt 0:00:11]} c5 {[%emt 0:00:21]} 4. g3 {[%emt 0:01:04]} cxd4 {[%emt 0:01:10]} 5. Bg2 {[%emt 0:01:02]} Nc6 {[%emt 0:00:19]} 6. Nxd4 {[%emt 0:00:19]} Qb6 {[%emt 0:11:42]} 7. e3 {[%emt 0:04:54]} d5 {[%emt 0:11:04]} 8. cxd5 {[%emt 0:04:52]} Nxd5 {[%emt 0:05:25]} 9. Nxc6 {[%emt 0:12:19]} bxc6 {[%emt 0:00:50]} 10. e4 {[%emt 0:01:29]} Nb4 {[%emt 0:15:32]} 11. a3 {[%emt 0:01:04]} Qa6 {[%emt 0:00:36]} 12. Bf1 {[%emt 0:00:44]} Qa5 {[%emt 0:00:12]} 13. Bd2 {[%emt 0:00:39]} Ba6 {[%emt 0:00:20]} 14. Bxb4 {[%emt 0:05:54]} Bxb4+ {[%emt 0:00:12]} 15. Nd2 {[%emt 0:00:17]} Be7 {[%emt 0:02:24]} 16. b4 {[%emt 0:01:07]} Qb6 {[%emt 0:00:39]} 17. Bxa6 {[%emt 0:00:08]} Qxa6 {[%emt 0:00:03]} 18. Qe2 {[%emt 0:00:14]} Qa4 {[%emt 0:01:45]} 19. O-O {[%emt 0:01:06]} O-O {[%emt 0:00:23]} 20. Nc4 {[%emt 0:01:36]} c5 {[%emt 0:05:23]} 21. bxc5 {[%emt 0:06:25]} Qa6 {[%emt 0:03:55]} 22. Rfd1 {[%emt 0:13:28]} Rac8 {[%emt 0:12:56]} 23. Qd3 {[%emt 0:04:02]} Rfd8 {[%emt 0:03:55]} 24. Nd6 {[%emt 0:03:47]} Qxd3 {[%emt 0:00:40]} 25. Rxd3 {[%emt 0:00:13]} Rxc5 {[%emt 0:00:17]} 26. Rad1 {[%emt 0:00:17]} Kf8 {[%emt 0:02:06]} 27. f4 {[%emt 0:05:34]} f6 {[%emt 0:06:46]} 28. Nb7 {[%emt 0:05:18]} Rxd3 {[%emt 0:00:35]} 29. Rxd3 {[%emt 0:00:11]} Rc1+ {[%emt 0:01:55]} 30. Kg2 {[%emt 0:00:21]} Rc2+ {[%emt 0:00:04]} 31. Kh3 {[%emt 0:00:52]} Re2 {[%emt 0:07:57]} 32. Nd6 {[%emt 0:06:09]} a5 {[%emt 0:01:48]} 33. Nb7 {[%emt 0:05:47]} Rxe4 {[%emt 0:01:00]} 34. Nxa5 {[%emt 0:00:28]} Ra4 {[%emt 0:00:30]} 35. Nc6 {[%emt 0:00:50]} Bxa3 {[%emt 0:01:01]} 36. Re3 {[%emt 0:03:26]} Bc5 {[%emt 0:01:36]} 37. Rxe6 {[%emt 0:01:27]} Ra2 {[%emt 0:00:12]} 38. Re1 {[%emt 0:00:36]} h5 {[%emt 0:00:30]} 39. Nd8 {[%emt 0:00:27]} Bb6 {[%emt 0:01:22]} 40. Ne6+ {[%emt 0:00:00]} Kf7 {[%emt 0:00:20]} 41. f5 {[%emt 0:00:57]} Rb2 {[%emt 0:04:08]} 42. Nf4 {[%emt 0:00:38]} Rb5 {[%emt 0:00:07]} 43. Nxh5 {[%emt 0:00:54]} Rxf5 {[%emt 0:00:04]} 44. Nf4 {[%emt 0:00:18]} g5 {[%emt 0:00:43]} 45. Nd3 {[%emt 0:01:05]} Rf3 {[%emt 0:00:41]} 46. Rd1 {[%emt 0:02:02]} Re3 {[%emt 0:01:12]} 47. Rd2 {[%emt 0:01:47]} Kg6 {[%emt 0:01:17]} 48. Kg2 {[%emt 0:01:48]} Kh5 {[%emt 0:01:18]} 49. Nf2 {[%emt 0:01:13]} Bc7 {[%emt 0:01:32]} 50. Rc2 {[%emt 0:04:28]} Be5 {[%emt 0:00:17]} 51. Ra2 {[%emt 0:01:08]} Rb3 {[%emt 0:02:02]} 52. Rd2 {[%emt 0:00:55]} Ra3 {[%emt 0:00:18]} 53. Re2 {[%emt 0:01:04]} Bb8 {[%emt 0:00:23]} 54. Rb2 {[%emt 0:00:19]} Ba7 {[%emt 0:00:07]} 55. Rc2 {[%emt 0:01:26]} Bd4 {[%emt 0:01:31]} 56. Rd2 {[%emt 0:00:32]} Be3 {[%emt 0:00:16]} 57. Re2 {[%emt 0:00:41]} f5 {[%emt 0:00:29]} 58. h3 {[%emt 0:06:16]} Kg6 {[%emt 0:03:24]} 59. Nd1 {[%emt 0:01:10]} Bd4 {[%emt 0:00:19]} 60. Nf2 {[%emt 0:00:35]} Kf6 {[%emt 0:03:14]} 61. Rd2 {[%emt 0:01:16]} Be5 {[%emt 0:00:08]} 62. Rd3 {[%emt 0:00:24]} Ra1 {[%emt 0:01:42]} 63. Kh2 {[%emt 0:00:55]} Ra2 {[%emt 0:01:01]} 64. Kg2 {[%emt 0:01:11]} Bb8 {[%emt 0:00:23]} 65. Rf3 {[%emt 0:02:30]} Ba7 {[%emt 0:00:10]} 66. Kf1 {[%emt 0:00:31]} Kg6 {[%emt 0:00:40]} 67. g4 {[%emt 0:00:47]} f4 {[%emt 0:00:20]} 68. h4 {[%emt 0:00:21]} Bxf2 {[%emt 0:01:42]} 69. h5+ {[%emt 0:00:39]} Kf6 {[%emt 0:00:19]} 70. Rxf2 {[%emt 0:00:10]} Ra3 {[%emt 0:00:17]} 71. Kg1 {[%emt 0:01:04]} Rg3+ {[%emt 0:00:49]} 72. Rg2 {[%emt 0:00:04]} Re3 {[%emt 0:00:15]} 73. Rh2 {[%emt 0:01:24]} Ra3 {[%emt 0:00:46]} 74. Re2 {[%emt 0:00:46]} Rc3 {[%emt 0:01:36]} 75. Kf1 {[%emt 0:00:06]} Rh3 {[%emt 0:00:19]} 76. Kg1 {[%emt 0:00:22]} Rh4 {[%emt 0:00:06]} 77. Rg2 {[%emt 0:00:23]} Ke5 {[%emt 0:00:08]} 78. Kf2 {[%emt 0:00:15]} Ke4 {[%emt 0:00:24]} 79. Rg1 {[%emt 0:00:34]} Rh2+ {[%emt 0:00:49]} 80. Rg2 {[%emt 0:00:16]} Rh1 {[%emt 0:00:05]} 81. Rg1 {[%emt 0:00:22]} Rh2+ {[%emt 0:00:03]} 82. Rg2 {[%emt 0:00:24]} Rh3 {[%emt 0:00:07]} 83. Rg1 {[%emt 0:00:33]} f3 {[%emt 0:02:39]} 84. Rb1 {[%emt 0:00:32]} Rh2+ {[%emt 0:00:08]} 85. Kg3 {[%emt 0:00:14]} Rg2+ {[%emt 0:00:04]} 86. Kh3 {[%emt 0:00:29]} Rd2 {[%emt 0:00:04]} 87. Kg3 {[%emt 0:00:55]} Rg2+ {[%emt 0:00:04]} 88. Kh3 {[%emt 0:00:10]} Ke3 {[%emt 0:02:02]} 89. Rb3+ {[%emt 0:00:17]} Ke2 {[%emt 0:00:27]} 90. Rb2+ {[%emt 0:00:20]} Kf1 {[%emt 0:00:08]} 91. Rb1+ {[%emt 0:00:22]} Kf2 {[%emt 0:00:04]} 92. Rb2+ {[%emt 0:00:13]} Kg1 {[%emt 0:00:11]} 93. Rb1+ {[%emt 0:00:14]} 1/2-1/2

[Event "Reykjavik Chess Congress 2018"]
[Site "Reykjavik"]
[Date "2018.01.14"]
[Round "2"]
[White "Mai, Aron Thor"]
[Black "Stefansson, Vignir Vatnar"]
[Result "1-0"]
[ECO "B00"]
[WhiteElo "2066"]
[BlackElo "2304"]
[Annotator "ChessBase"]
[PlyCount "71"]
[EventDate "2018.??.??"]
[EventType "swiss"]
[EventCountry "ISL"]
[SourceTitle "playchess.com"]
[Source "ChessBase"]
[SourceQuality "1"]
[TimeControl "40/5400+30:900+30"]

1. e4 {[%emt 0:00:00]} Nc6 {[%emt 0:00:03]} 2. Nf3 {[%emt 0:00:00]} d6 {[%emt 0:00:01]} 3. d4 {[%emt 0:00:00]} Nf6 {[%emt 0:00:04]} 4. Nc3 {[%emt 0:00:00]} Bg4 {[%emt 0:00:06]} 5. d5 {[%emt 0:00:07]} Ne5 {[%emt 0:00:57]} 6. Bb5+ {[%emt 0:00:32]} Bd7 {[%emt 0:03:28]} 7. Nxe5 {[%emt 0:18:46]} dxe5 {[%emt 0:00:07]} 8. Qe2 {[%emt 0:03:02]} a6 {[%emt 0:03:02]} 9. Bxd7+ {[%emt 0:01:40]} Qxd7 {[%emt 0:00:14]} 10. O-O {[%emt 0:03:06]} g6 {[%emt 0:03:25]} 11. a4 {[%emt 0:25:51]} Bg7 {[%emt 0:00:24]} 12. h3 {[%emt 0:02:05]} O-O {[%emt 0:00:25]} 13. Bg5 {[%emt 0:01:38]} Ne8 {[%emt 0:00:18]} 14. Qg4 {[%emt 0:16:13]} Qd6 {[%emt 0:03:40]} 15. Qh4 {[%emt 0:01:24]} Bf6 {[%emt 0:02:05]} 16. Rae1 {[%emt 0:01:28]} Qb6 {[%emt 0:10:52]} 17. Nd1 {[%emt 0:03:01]} Bxg5 {[%emt 0:07:26]} 18. Qxg5 {[%emt 0:00:02]} f6 {[%emt 0:00:08]} 19. Qg4 {[%emt 0:05:37]} Ng7 {[%emt 0:00:15]} 20. Re3 {[%emt 0:02:12]} Qd6 {[%emt 0:00:47]} 21. Rb3 {[%emt 0:03:21]} Rab8 {[%emt 0:00:14]} 22. c4 {[%emt 0:02:07]} e6 {[%emt 0:00:42]} 23. Ne3 {[%emt 0:00:45]} exd5 {[%emt 0:01:44]} 24. cxd5 {[%emt 0:05:35]} f5 {[%emt 0:00:06]} 25. exf5 {[%emt 0:00:39]} gxf5 {[%emt 0:00:19]} 26. Qd1 {[%emt 0:02:14]} b5 {[%emt 0:00:46]} 27. f4 {[%emt 0:01:09]} exf4 {[%emt 0:03:25]} 28. Nc2 {[%emt 0:00:01]} bxa4 {[%emt 0:00:08]} 29. Rc3 {[%emt 0:00:51]} Rxb2 {[%emt 0:00:37]} 30. Rc6 {[%emt 0:00:38]} Qe5 {[%emt 0:00:15]} 31. Re1 {[%emt 0:00:32]} Qd6 {[%emt 0:00:53]} 32. Rxd6 cxd6 33. Nd4 a3 34. Qa1 {[%emt 0:01:01]} Rd2 {[%emt 0:00:15]} 35. Ne6 {[%emt 0:00:40]} Nxe6 {[%emt 0:00:13]} 36. dxe6 {[%emt 0:00:01]} 1-0

[Event "Reykjavik Chess Congress 2018"]
[Site "Reykjavik"]
[Date "2018.01.14"]
[Round "2"]
[White "Baldursson, Haraldur"]
[Black "Viglundsson, Bjorgvin"]
[Result "0-1"]
[ECO "D24"]
[WhiteElo "1942"]
[BlackElo "2167"]
[Annotator "ChessBase"]
[PlyCount "92"]
[EventDate "2018.??.??"]
[EventType "swiss"]
[EventCountry "ISL"]
[SourceTitle "playchess.com"]
[Source "ChessBase"]
[SourceQuality "1"]
[TimeControl "40/5400+30:900+30"]

1. d4 {[%emt 0:17:09]} d5 {[%emt 0:00:52]} 2. Nf3 {[%emt 0:00:24]} Nf6 {[%emt 0:00:02]} 3. c4 {[%emt 0:01:08]} dxc4 {[%emt 0:00:33]} 4. Nc3 {[%emt 0:01:15]} a6 {[%emt 0:02:29]} 5. a4 {[%emt 0:03:18]} e6 {[%emt 0:06:22]} 6. e3 {[%emt 0:06:48]} c5 {[%emt 0:01:25]} 7. Bxc4 {[%emt 0:02:53]} Nbd7 {[%emt 0:03:55]} 8. O-O {[%emt 0:05:31]} cxd4 {[%emt 0:02:07]} 9. Nxd4 {[%emt 0:06:29]} Qc7 {[%emt 0:02:43]} 10. Qe2 {[%emt 0:04:33]} Ne5 {[%emt 0:04:18]} 11. Ba2 {[%emt 0:04:03]} Bd7 {[%emt 0:02:36]} 12. Kh1 {[%emt 0:05:30]} Be7 {[%emt 0:02:05]} 13. e4 {[%emt 0:04:40]} Nc6 {[%emt 0:07:15]} 14. Be3 {[%emt 0:05:43]} O-O {[%emt 0:06:46]} 15. f4 {[%emt 0:03:43]} Nxd4 {[%emt 0:03:31]} 16. Bxd4 {[%emt 0:01:09]} Bc6 {[%emt 0:00:24]} 17. e5 {[%emt 0:02:17]} Nd7 {[%emt 0:14:02]} 18. f5 {[%emt 0:04:14]} Bc5 {[%emt 0:04:56]} 19. fxe6 {[%emt 0:06:57]} Bxd4 {[%emt 0:01:15]} 20. e7 {[%emt 0:03:04]} Rfe8 {[%emt 0:01:34]} 21. Rxf7 {[%emt 0:01:02]} Kh8 {[%emt 0:00:28]} 22. e6 {[%emt 0:07:31]} Nf6 {[%emt 0:04:39]} 23. Qd3 {[%emt 0:00:25]} Bxc3 {[%emt 0:07:05]} 24. Qxc3 {[%emt 0:00:37]} Qf4 {[%emt 0:02:15]} 25. Rd1 {[%emt 0:01:28]} Rac8 {[%emt 0:02:33]} 26. Qh3 {[%emt 0:00:38]} Be4 {[%emt 0:01:12]} 27. b4 {[%emt 0:00:21]} Qg4 {[%emt 0:08:30]} 28. Qxg4 {[%emt 0:00:10]} Nxg4 {[%emt 0:00:02]} 29. Rf8+ {[%emt 0:00:20]} Rxf8 {[%emt 0:00:24]} 30. exf8=Q+ {[%emt 0:00:05]} Rxf8 {[%emt 0:00:07]} 31. e7 {[%emt 0:00:13]} Re8 {[%emt 0:00:09]} 32. Bf7 {[%emt 0:00:48]} Nf6 {[%emt 0:04:26]} 33. Rd8 {[%emt 0:00:22]} Bc6 {[%emt 0:00:15]} 34. a5 {[%emt 0:00:38]} g6 {[%emt 0:00:27]} 35. Kg1 {[%emt 0:00:30]} Kg7 {[%emt 0:00:06]} 36. Bxe8 {[%emt 0:00:09]} Nxe8 {[%emt 0:00:10]} 37. Rc8 {[%emt 0:00:31]} Kf7 {[%emt 0:00:13]} 38. Rd8 {[%emt 0:00:17]} Kxe7 {[%emt 0:00:09]} 39. Rd4 {[%emt 0:00:08]} Nd6 {[%emt 0:01:22]} 40. Kf2 {[%emt 0:00:00]} Nf5 {[%emt 0:00:17]} 41. Rd2 {[%emt 0:02:43]} h5 {[%emt 0:00:21]} 42. g3 {[%emt 0:00:16]} Nd6 {[%emt 0:01:04]} 43. Rd4 {[%emt 0:00:27]} Ke6 {[%emt 0:00:30]} 44. Rf4 {[%emt 0:00:32]} Nf5 {[%emt 0:00:32]} 45. g4 {[%emt 0:00:29]} Ke5 {[%emt 0:00:24]} 46. Rc4 {[%emt 0:00:43]} Bd5 {[%emt 0:00:55]} 0-1

[Event "Reykjavik Chess Congress 2018"]
[Site "Reykjavik"]
[Date "2018.01.14"]
[Round "2"]
[White "Sigurdsson, Birkir Karl"]
[Black "Ingvason, Johann"]
[Result "1-0"]
[ECO "D35"]
[WhiteElo "1934"]
[BlackElo "2161"]
[Annotator "ChessBase"]
[PlyCount "107"]
[EventDate "2018.??.??"]
[EventType "swiss"]
[EventCountry "ISL"]
[SourceTitle "playchess.com"]
[Source "ChessBase"]
[SourceQuality "1"]
[TimeControl "40/5400+30:900+30"]

1. d4 {[%emt 0:12:07]} Nf6 {[%emt 0:00:06]} 2. c4 {[%emt 0:01:06]} e6 {[%emt 0:00:54]} 3. Nc3 {[%emt 0:01:02]} d5 {[%emt 0:01:44]} 4. cxd5 {[%emt 0:01:30]} exd5 {[%emt 0:00:06]} 5. Bg5 {[%emt 0:02:32]} Be7 {[%emt 0:00:08]} 6. Qc2 {[%emt 0:00:34]} O-O {[%emt 0:00:30]} 7. e3 {[%emt 0:01:00]} h6 {[%emt 0:02:51]} 8. Bh4 {[%emt 0:00:20]} c5 {[%emt 0:00:46]} 9. Nf3 {[%emt 0:06:35]} Nc6 {[%emt 0:00:20]} 10. a3 {[%emt 0:01:04]} Bg4 {[%emt 0:03:39]} 11. dxc5 {[%emt 0:12:04]} Bxf3 {[%emt 0:17:46]} 12. gxf3 {[%emt 0:00:20]} d4 {[%emt 0:00:16]} 13. Rd1 {[%emt 0:06:56]} Ne5 {[%emt 0:01:29]} 14. Qf5 {[%emt 0:07:53]} Nfd7 {[%emt 0:37:49]} 15. Bxe7 {[%emt 0:04:56]} Qxe7 {[%emt 0:00:01]} 16. Rxd4 {[%emt 0:02:51]} g6 {[%emt 0:07:42]} 17. Qh3 {[%emt 0:02:18]} Nxc5 {[%emt 0:01:07]} 18. Be2 {[%emt 0:02:06]} Rad8 {[%emt 0:01:10]} 19. Nd5 {[%emt 0:02:52]} Qe6 {[%emt 0:07:36]} 20. Qxh6 {[%emt 0:01:06]} f5 {[%emt 0:12:10]} 21. Rh4 {[%emt 0:01:19]} Rd7 {[%emt 0:00:01]} 22. Qh8+ {[%emt 0:02:44]} Kf7 {[%emt 0:00:01]} 23. Qh7+ {[%emt 0:00:31]} Ke8 {[%emt 0:00:01]} 24. Nc7+ {[%emt 0:00:11]} Rxc7 {[%emt 0:00:00]} 25. Qxc7 {[%emt 0:00:03]} Ned7 {[%emt 0:03:20]} 26. Rh7 {[%emt 0:00:44]} Qc6 {[%emt 0:00:20]} 27. Qxc6 {[%emt 0:01:32]} bxc6 {[%emt 0:00:00]} 28. Rg1 {[%emt 0:00:29]} Rf6 {[%emt 0:01:25]} 29. h4 {[%emt 0:01:44]} Ne6 {[%emt 0:00:57]} 30. Rh6 {[%emt 0:03:17]} Kf7 {[%emt 0:00:43]} 31. h5 {[%emt 0:00:49]} Ndf8 {[%emt 0:00:21]} 32. hxg6+ {[%emt 0:00:18]} Kg7 {[%emt 0:00:01]} 33. Rh4 {[%emt 0:00:27]} f4 {[%emt 0:00:01]} 34. Rh5 {[%emt 0:01:13]} c5 {[%emt 0:00:41]} 35. Bc4 {[%emt 0:02:20]} fxe3 {[%emt 0:00:43]} 36. fxe3 {[%emt 0:00:03]} Rxf3 {[%emt 0:00:02]} 37. Ke2 {[%emt 0:00:38]} Rf6 {[%emt 0:00:24]} 38. Bxe6 {[%emt 0:00:34]} Rxe6 {[%emt 0:00:14]} 39. Rxc5 {[%emt 0:00:07]} Re7 {[%emt 0:00:28]} 40. Rf5 {[%emt 0:00:22]} Re8 {[%emt 0:16:51]} 41. Rf7+ {[%emt 0:15:15]} Kg8 {[%emt 0:00:01]} 42. g7 {[%emt 0:00:40]} Ne6 {[%emt 0:00:02]} 43. Rxa7 {[%emt 0:00:14]} Nf4+ {[%emt 0:00:18]} 44. Kf3 {[%emt 0:00:22]} Nd3 {[%emt 0:00:22]} 45. Rh1 {[%emt 0:00:46]} Ne5+ {[%emt 0:00:15]} 46. Kf4 Ng6+ 47. Kg5 Rxe3 48. Ra8+ Kxg7 49. Ra7+ Ne7 50. Rd1 Kh8 51. Rd8+ Ng8 52. Raa8 Kh7 53. Rxg8 Re8 54. Rgxe8 1-0

[Event "Reykjavik Chess Congress 2018"]
[Site "Reykjavik"]
[Date "2018.01.14"]
[Round "2"]
[White "Bjarnason, Olafur"]
[Black "Fridjonsson, Julius"]
[Result "0-1"]
[ECO "A37"]
[WhiteElo "1818"]
[BlackElo "2137"]
[Annotator "ChessBase"]
[PlyCount "144"]
[EventDate "2018.??.??"]
[EventType "swiss"]
[EventCountry "ISL"]
[SourceTitle "playchess.com"]
[Source "ChessBase"]
[SourceQuality "1"]
[TimeControl "40/5400+30:900+30"]

1. Nf3 {[%emt 0:00:00]} c5 {[%emt 0:00:37]} 2. c4 {[%emt 0:00:32]} Nc6 {[%emt 0:00:10]} 3. Nc3 {[%emt 0:00:26]} g6 {[%emt 0:00:53]} 4. g3 {[%emt 0:00:12]} Bg7 {[%emt 0:00:10]} 5. Bg2 {[%emt 0:00:10]} e6 {[%emt 0:00:39]} 6. e3 {[%emt 0:01:07]} Nge7 {[%emt 0:02:00]} 7. d4 {[%emt 0:02:14]} cxd4 {[%emt 0:05:39]} 8. Nxd4 {[%emt 0:03:22]} d5 {[%emt 0:06:07]} 9. cxd5 {[%emt 0:01:41]} Nxd4 {[%emt 0:01:04]} 10. exd4 {[%emt 0:00:22]} exd5 {[%emt 0:00:35]} 11. Bg5 {[%emt 0:04:31]} h6 {[%emt 0:03:01]} 12. Be3 {[%emt 0:02:56]} O-O {[%emt 0:01:06]} 13. O-O {[%emt 0:01:51]} Be6 {[%emt 0:00:19]} 14. Rc1 {[%emt 0:02:19]} Rc8 {[%emt 0:10:03]} 15. Qa4 {[%emt 0:07:56]} Qb6 {[%emt 0:14:45]} 16. Qb5 {[%emt 0:06:09]} Rc6 {[%emt 0:02:12]} 17. Qxb6 {[%emt 0:02:43]} Rxb6 {[%emt 0:02:23]} 18. Na4 {[%emt 0:02:02]} Rb4 {[%emt 0:03:47]} 19. b3 {[%emt 0:01:21]} Nf5 {[%emt 0:01:11]} 20. Rc7 {[%emt 0:07:30]} Nxd4 {[%emt 0:06:25]} 21. Rd1 {[%emt 0:01:58]} Be5 {[%emt 0:04:57]} 22. Bxd4 {[%emt 0:02:18]} Rxd4 {[%emt 0:00:14]} 23. Rxd4 {[%emt 0:01:00]} Bxd4 {[%emt 0:00:07]} 24. Nc5 {[%emt 0:02:05]} b6 {[%emt 0:08:38]} 25. Nxe6 {[%emt 0:02:07]} fxe6 {[%emt 0:00:35]} 26. Rc2 {[%emt 0:00:15]} Kg7 {[%emt 0:01:22]} 27. Kf1 {[%emt 0:00:56]} Rf7 {[%emt 0:00:48]} 28. Bh3 {[%emt 0:01:35]} Re7 {[%emt 0:02:11]} 29. Ke2 {[%emt 0:03:26]} Bc5 {[%emt 0:00:41]} 30. Kd3 {[%emt 0:00:46]} Kf6 {[%emt 0:02:33]} 31. f3 {[%emt 0:00:58]} Ke5 {[%emt 0:00:45]} 32. Re2+ {[%emt 0:00:38]} Kd6 {[%emt 0:00:23]} 33. Bg2 {[%emt 0:01:16]} g5 {[%emt 0:00:42]} 34. Bh3 {[%emt 0:02:28]} e5 {[%emt 0:00:57]} 35. Bf5 {[%emt 0:00:53]} h5 {[%emt 0:02:25]} 36. h3 {[%emt 0:02:44]} Re8 {[%emt 0:02:30]} 37. g4 {[%emt 0:03:36]} hxg4 {[%emt 0:00:50]} 38. Bxg4 {[%emt 0:01:00]} Rf8 {[%emt 0:03:07]} 39. Rg2 {[%emt 0:02:25]} Ke7 {[%emt 0:00:03]} 40. Rh2 {[%emt 0:03:42]} Rf4 {[%emt 0:15:28]} 41. Re2 {[%emt 0:15:42]} Kf6 {[%emt 0:00:29]} 42. Kc3 {[%emt 0:01:29]} a5 {[%emt 0:02:51]} 43. Kd3 a4 44. bxa4 Rxa4 45. Rc2 Ra3+ 46. Kd2 e4 47. fxe4 dxe4 48. Kc1 Ke5 49. Kb2 Rg3 50. Re2 Bd4+ 51. Kc2 Rc3+ 52. Kb1 Rg3 53. Kc2 Kf4 54. Rd2 Ke5 55. Re2 b5 56. Kd2 Rg1 57. Kc2 Ra1 58. Kb3 Rb1+ 59. Kc2 Ra1 60. Kb3 e3 61. Bd7 Rh1 62. Bxb5 Rxh3 63. a4 Rg3 64. a5 Rg1 65. a6 Rb1+ 66. Kc4 Rc1+ 67. Kb3 g4 68. Rc2 Rb1+ 69. Kc4 g3 70. Bc6 Rd1 71. Bf3 Rd2 72. Rxd2 exd2 0-1

[Event "Reykjavik Chess Congress 2018"]
[Site "Reykjavik"]
[Date "2018.01.17"]
[Round "3"]
[White "Jensson, Einar Hjalti"]
[Black "Valdimarsson, Einar"]
[Result "1/2-1/2"]
[ECO "B23"]
[WhiteElo "2336"]
[BlackElo "2023"]
[Annotator "ChessBase"]
[PlyCount "110"]
[EventDate "2018.??.??"]
[EventType "swiss"]
[EventCountry "ISL"]
[SourceTitle "playchess.com"]
[Source "ChessBase"]
[SourceQuality "1"]
[TimeControl "40/5400+30:900+30"]

1. e4 {[%emt 0:00:00]} c5 {[%emt 0:00:46]} 2. Nc3 {[%emt 0:00:18]} d6 {[%emt 0:03:43]} 3. f4 {[%emt 0:01:55]} g6 {[%emt 0:00:14]} 4. Nf3 {[%emt 0:00:14]} Nc6 {[%emt 0:00:10]} 5. Bc4 {[%emt 0:00:37]} e6 {[%emt 0:00:39]} 6. O-O {[%emt 0:01:03]} Nge7 {[%emt 0:01:26]} 7. d3 {[%emt 0:01:51]} Bg7 {[%emt 0:01:16]} 8. Qe1 {[%emt 0:04:04]} O-O {[%emt 0:06:08]} 9. Qh4 {[%emt 0:03:36]} Nd4 {[%emt 0:12:23]} 10. f5 {[%emt 0:04:50]} gxf5 {[%emt 0:03:55]} 11. Bh6 {[%emt 0:04:04]} Ng6 {[%emt 0:09:58]} 12. Qh5 {[%emt 0:05:27]} Nxf3+ {[%emt 0:02:52]} 13. Rxf3 {[%emt 0:00:09]} Qh4 {[%emt 0:01:12]} 14. Qxh4 {[%emt 0:00:26]} Nxh4 {[%emt 0:00:06]} 15. Rg3 {[%emt 0:00:10]} Ng6 {[%emt 0:00:09]} 16. Bxg7 {[%emt 0:00:07]} Kxg7 {[%emt 0:00:05]} 17. exf5 {[%emt 0:00:43]} exf5 {[%emt 0:00:08]} 18. Re1 {[%emt 0:06:12]} Bd7 {[%emt 0:04:27]} 19. Bd5 {[%emt 0:10:29]} Rae8 {[%emt 0:09:24]} 20. Kf1 {[%emt 0:05:32]} Rxe1+ {[%emt 0:01:57]} 21. Kxe1 {[%emt 0:00:01]} Re8+ {[%emt 0:00:43]} 22. Kd2 {[%emt 0:00:47]} Bc6 {[%emt 0:01:20]} 23. Bxc6 {[%emt 0:01:17]} bxc6 {[%emt 0:00:04]} 24. Rf3 {[%emt 0:04:09]} Re5 {[%emt 0:03:43]} 25. g3 {[%emt 0:04:43]} Kh6 {[%emt 0:03:39]} 26. Nd1 {[%emt 0:04:33]} Kg5 {[%emt 0:05:08]} 27. Ne3 {[%emt 0:01:14]} Ne7 {[%emt 0:05:13]} 28. a3 {[%emt 0:07:55]} Nd5 {[%emt 0:05:21]} 29. Ng2 {[%emt 0:02:23]} Kg4 {[%emt 0:11:17]} 30. Rf2 {[%emt 0:00:14]} Kh3 {[%emt 0:00:41]} 31. Ne1 {[%emt 0:02:37]} f4 {[%emt 0:01:17]} 32. c4 {[%emt 0:00:19]} fxg3 {[%emt 0:04:31]} 33. hxg3 {[%emt 0:00:21]} Ne7 {[%emt 0:01:04]} 34. Rxf7 {[%emt 0:00:48]} h5 {[%emt 0:00:12]} 35. Nf3 {[%emt 0:01:17]} Rf5 {[%emt 0:00:20]} 36. Ng1+ {[%emt 0:00:01]} Kg2 {[%emt 0:00:24]} 37. Rxe7 {[%emt 0:00:53]} Kxg1 {[%emt 0:00:05]} 38. Rxa7 {[%emt 0:01:27]} Rg5 {[%emt 0:00:58]} 39. Rd7 {[%emt 0:05:15]} Kf2 {[%emt 0:00:58]} 40. Rxd6 {[%emt 0:00:00]} Kxg3 {[%emt 0:00:07]} 41. Rxc6 {[%emt 0:00:27]} h4 {[%emt 0:01:20]} 42. Rh6 {[%emt 0:00:33]} h3 {[%emt 0:02:35]} 43. b4 {[%emt 0:00:10]} h2 {[%emt 0:00:28]} 44. Kc3 {[%emt 0:00:56]} Rg4 {[%emt 0:01:44]} 45. Rxh2 {[%emt 0:00:11]} Kxh2 {[%emt 0:00:04]} 46. bxc5 {[%emt 0:00:13]} Kg3 {[%emt 0:00:20]} 47. Kb4 {[%emt 0:02:28]} Kf4 {[%emt 0:02:01]} 48. c6 {[%emt 0:01:28]} Ke3 {[%emt 0:00:20]} 49. c7 {[%emt 0:00:33]} Rg8 {[%emt 0:00:03]} 50. Kc5 {[%emt 0:02:17]} Kxd3 {[%emt 0:00:54]} 51. a4 {[%emt 0:01:09]} Rc8 {[%emt 0:03:43]} 52. Kb6 {[%emt 0:01:40]} Kxc4 {[%emt 0:00:20]} 53. a5 {[%emt 0:00:13]} Rxc7 {[%emt 0:00:19]} 54. Kxc7 {[%emt 0:00:06]} Kb5 {[%emt 0:00:03]} 55. a6 {[%emt 0:00:10]} Kxa6 {[%emt 0:00:04]} 1/2-1/2